[Event "SWE-ch Masters Elite 2019"]
[Site "Eskilstuna"]
[Date "2019.07.10"]
[Round "5.4"]
[White "Andersson, Tommy"]
[Black "Wengholm, Anders"]
[Result "1-0"]
[ECO "A65"]
[WhiteElo "2390"]
[BlackElo "2219"]
[Annotator "NA"]
[PlyCount "101"]
[EventDate "2019.07.06"]
[EventType "tourn"]
[EventCountry "SWE"]
[SourceTitle "playchess.com"]
[Source "ChessBase"]
[SourceQuality "1"]
[TimeControl "40/5400+30:1800+30"]

1. d4 {[%emt 0:00:00]} Nf6 {[%emt 0:00:00]} 2. c4 {[%emt 0:00:03]} g6 {[%emt 0:00:00]} 3. f3 {[%emt 0:00:57]} Bg7 {[%emt 0:01:06]} 4. e4 {[%emt 0:00:08]} d6 {[%emt 0:00:06]} 5. Nc3 {[%emt 0:00:03]} O-O {[%emt 0:00:10]} 6. Be3 {[%emt 0:00:05]} c5 {[%emt 0:00:13]} 7. Nge2 {[%emt 0:00:32]} Nc6 {[%emt 0:00:39]} 8. d5 {[%emt 0:01:12]} Ne5 {[%emt 0:00:37]} 9. Ng3 {[%emt 0:00:24]} e6 {[%emt 0:01:01]} 10. Be2 {[%emt 0:02:07]} exd5 {[%emt 0:04:06]} 11. cxd5 {[%emt 0:02:12]} a6 {[%emt 0:01:02]} 12. a4 {[%emt 0:01:39]} h5 {[%emt 0:11:06]} 13. O-O {[%emt 0:02:34]} Nh7 {[%emt 0:04:00]} 14. Qd2 {[%emt 0:06:08]} Re8 {[%emt 0:07:13]} 15. Nh1 {[%emt 0:09:48]} f5 {[%emt 0:10:36]} 16. Nf2 {[%emt 0:05:13]} Bd7 {[%emt 0:03:34]} 17. Nh3 {[%emt 0:14:34]} fxe4 {[%emt 0:02:14]} 18. Nxe4 {[%emt 0:00:31]} Bxh3 {[%emt 0:01:03]} 19. gxh3 {[%emt 0:00:07]} Qd7 {[%emt 0:26:42]} 20. Kg2 {[%emt 0:02:22]} b5 {[%emt 0:05:32]} 21. b3 {[%emt 0:12:42]} Nf7 {[%emt 0:08:25]} 22. Ra2 {[%emt 0:01:25]} Rab8 {[%emt 0:00:31]} 23. axb5 {[%emt 0:06:21]} axb5 {[%emt 0:00:02]} 24. Ra6 {[%emt 0:01:06]} Ra8 {[%emt 0:02:23]} 25. Rb6 {[%emt 0:03:53]} Reb8 {[%emt 0:00:18]} 26. Bxb5 {[%emt 0:07:31]} Qd8 {[%emt 0:01:26]} 27. Rxb8 {[%emt 0:00:35]} Qxb8 {[%emt 0:00:25]} 28. Bc4 {[%emt 0:06:17]} Qe8 {[%emt 0:00:49]} 29. Bf4 {[%emt 0:02:21]} Qd7 {[%emt 0:01:17]} 30. Re1 {[%emt 0:04:11]} Re8 {[%emt 0:03:55]} 31. Bg3 {[%emt 0:03:54]} Be5 {[%emt 0:01:24]} 32. f4 {[%emt 0:01:52]} Bd4 {[%emt 0:00:30]} 33. Bd3 {[%emt 0:00:18]} Kg7 {[%emt 0:00:24]} 34. Re2 {[%emt 0:00:20]} Nh6 {[%emt 0:01:33]} 35. Ng5 {[%emt 0:02:02]} Rxe2+ {[%emt 0:00:20]} 36. Qxe2 {[%emt 0:00:18]} Nxg5 {[%emt 0:00:27]} 37. fxg5 {[%emt 0:00:37]} Nf5 {[%emt 0:02:14]} 38. Qe6 {[%emt 0:01:52]} Ne3+ {[%emt 0:01:03]} 39. Kf3 {[%emt 0:00:38]} Qf7+ {[%emt 0:00:27]} 40. Qxf7+ {[%emt 0:00:33]} Kxf7 {[%emt 0:00:02]} 41. Bf2 {[%emt 0:09:52]} Nd1 {[%emt 0:07:39]} 42. Bxd4 {[%emt 0:03:01]} cxd4 {[%emt 0:00:01]} 43. b4 {[%emt 0:01:26]} Nc3 {[%emt 0:00:59]} 44. b5 {[%emt 0:01:39]} Na4 {[%emt 0:04:25]} 45. Ke4 {[%emt 0:00:56]} Nc5+ {[%emt 0:02:14]} 46. Kxd4 {[%emt 0:00:06]} Nxd3 {[%emt 0:01:11]} 47. Kxd3 {[%emt 0:00:07]} Ke7 {[%emt 0:00:07]} 48. b6 {[%emt 0:02:29]} Kd7 {[%emt 0:04:28]} 49. Kc4 {[%emt 0:00:38]} Kc8 {[%emt 0:00:35]} 50. Kb5 {[%emt 0:00:14]} Kb7 {[%emt 0:00:04]} 51. h4 {[%emt 0:00:08]} 1-0

[Event "SWE-ch Masters Elite 2019"]
[Site "Eskilstuna"]
[Date "2019.07.10"]
[Round "5.5"]
[White "Malmstig, Erik"]
[Black "Logdahl, Harald"]
[Result "0-1"]
[ECO "A85"]
[WhiteElo "2357"]
[BlackElo "2269"]
[Annotator "NA"]
[PlyCount "80"]
[EventDate "2019.07.06"]
[EventType "tourn"]
[EventCountry "SWE"]
[SourceTitle "playchess.com"]
[Source "ChessBase"]
[SourceQuality "1"]
[TimeControl "40/5400+30:1800+30"]

1. d4 {[%emt 0:00:00]} f5 {[%emt 0:00:51]} 2. c4 {[%emt 0:00:00]} Nf6 {[%emt 0:00:05]} 3. Nc3 {[%emt 0:00:00]} d6 {[%emt 0:00:10]} 4. e3 {[%emt 0:00:33]} g6 {[%emt 0:02:17]} 5. Bd3 {[%emt 0:00:20]} e5 {[%emt 0:01:54]} 6. Nge2 {[%emt 0:00:42]} Nc6 {[%emt 0:01:57]} 7. f3 {[%emt 0:00:49]} Bg7 {[%emt 0:02:42]} 8. a3 {[%emt 0:01:23]} O-O {[%emt 0:01:39]} 9. O-O {[%emt 0:01:42]} a5 {[%emt 0:03:50]} 10. Rb1 {[%emt 0:01:20]} Nh5 {[%emt 0:11:25]} 11. d5 {[%emt 0:03:29]} Nb8 {[%emt 0:07:09]} 12. f4 {[%emt 0:00:53]} Na6 {[%emt 0:02:00]} 13. b4 {[%emt 0:00:52]} axb4 {[%emt 0:04:03]} 14. axb4 {[%emt 0:01:39]} Kh8 {[%emt 0:00:47]} 15. Bd2 {[%emt 0:09:18]} c5 {[%emt 0:04:08]} 16. bxc5 {[%emt 0:13:21]} Nxc5 {[%emt 0:00:11]} 17. Bc2 {[%emt 0:00:08]} Bd7 {[%emt 0:02:21]} 18. Nb5 {[%emt 0:05:24]} Bxb5 {[%emt 0:00:19]} 19. Rxb5 {[%emt 0:00:06]} Qe7 {[%emt 0:02:51]} 20. Kh1 {[%emt 0:13:34]} exf4 {[%emt 0:06:02]} 21. exf4 {[%emt 0:01:05]} Nf6 {[%emt 0:08:57]} 22. Ng1 {[%emt 0:16:34]} Nfe4 {[%emt 0:06:32]} 23. Nf3 {[%emt 0:06:31]} Rfe8 {[%emt 0:05:25]} 24. Rb6 {[%emt 0:07:43]} Ra1 {[%emt 0:06:18]} 25. Bb1 {[%emt 0:10:05]} Qc7 {[%emt 0:05:44]} 26. Rb4 {[%emt 0:01:07]} Nd3 {[%emt 0:01:01]} 27. Qc2 {[%emt 0:02:37]} Nxd2 {[%emt 0:03:02]} 28. Qxd2 {[%emt 0:00:12]} Nxb4 {[%emt 0:00:08]} 29. Qxb4 {[%emt 0:00:05]} Qc5 {[%emt 0:04:23]} 30. Qb3 {[%emt 0:01:41]} b6 {[%emt 0:00:39]} 31. h4 {[%emt 0:00:36]} Re3 {[%emt 0:02:36]} 32. Qc2 {[%emt 0:01:25]} Kg8 {[%emt 0:01:43]} 33. h5 {[%emt 0:00:15]} b5 {[%emt 0:00:20]} 34. Nd2 {[%emt 0:00:14]} bxc4 {[%emt 0:00:35]} 35. Nxc4 {[%emt 0:01:10]} Re4 {[%emt 0:00:34]} 36. Nd2 {[%emt 0:00:35]} Qxc2 {[%emt 0:00:11]} 37. Bxc2 {[%emt 0:00:05]} Rxf1+ {[%emt 0:00:12]} 38. Nxf1 {[%emt 0:00:04]} Rxf4 {[%emt 0:00:09]} 39. Ne3 {[%emt 0:01:20]} Rh4+ {[%emt 0:00:25]} 40. Kg1 {[%emt 0:00:05]} Bd4 {[%emt 0:00:06]} 0-1

[Event "SWE-ch Masters Elite 2019"]
[Site "Eskilstuna"]
[Date "2019.07.11"]
[Round "6.1"]
[White "Cramling, Dan"]
[Black "Ernst, Thomas"]
[Result "1-0"]
[ECO "D48"]
[WhiteElo "2321"]
[BlackElo "2335"]
[Annotator "NA"]
[PlyCount "83"]
[EventDate "2019.07.06"]
[EventType "tourn"]
[EventCountry "SWE"]
[SourceTitle "playchess.com"]
[Source "ChessBase"]
[SourceQuality "1"]
[TimeControl "40/5400+30:1800+30"]

1. c4 {[%emt 0:12:44]} c6 {[%emt 0:00:00]} 2. Nc3 {[%emt 0:00:10]} d5 {[%emt 0:00:00]} 3. d4 {[%emt 0:00:04]} Nf6 {[%emt 0:00:00]} 4. e3 {[%emt 0:00:11]} e6 {[%emt 0:00:08]} 5. Nf3 {[%emt 0:00:20]} Nbd7 {[%emt 0:00:12]} 6. Bd3 {[%emt 0:03:04]} dxc4 {[%emt 0:00:14]} 7. Bxc4 {[%emt 0:00:04]} b5 {[%emt 0:00:06]} 8. Bd3 {[%emt 0:00:06]} a6 {[%emt 0:00:14]} 9. a4 {[%emt 0:00:28]} b4 {[%emt 0:05:37]} 10. Ne4 {[%emt 0:00:30]} Bb7 {[%emt 0:04:32]} 11. O-O {[%emt 0:00:47]} c5 {[%emt 0:14:24]} 12. Nxf6+ {[%emt 0:00:33]} Nxf6 {[%emt 0:00:09]} 13. dxc5 {[%emt 0:00:11]} Bxc5 {[%emt 0:00:16]} 14. Qe2 {[%emt 0:00:06]} Qe7 {[%emt 0:04:57]} 15. e4 {[%emt 0:03:02]} e5 {[%emt 0:01:13]} 16. Nh4 {[%emt 0:00:55]} O-O {[%emt 0:08:29]} 17. Nf5 {[%emt 0:02:26]} Qe6 {[%emt 0:01:12]} 18. Bg5 {[%emt 0:06:40]} Rfc8 {[%emt 0:14:53]} 19. Rac1 {[%emt 0:07:29]} a5 {[%emt 0:07:40]} 20. Rfd1 {[%emt 0:03:17]} Qb6 {[%emt 0:10:19]} 21. Bxf6 {[%emt 0:17:15]} Qxf6 {[%emt 0:00:22]} 22. Bc4 {[%emt 0:02:49]} Bd4 {[%emt 0:04:04]} 23. Rc2 {[%emt 0:02:36]} Rd8 {[%emt 0:03:26]} 24. Rd3 {[%emt 0:01:34]} Ba6 {[%emt 0:03:30]} 25. Rg3 {[%emt 0:02:43]} g6 {[%emt 0:00:35]} 26. Nh6+ {[%emt 0:00:38]} Kg7 {[%emt 0:01:05]} 27. Rf3 {[%emt 0:00:30]} Bxc4 {[%emt 0:01:00]} 28. Qxc4 {[%emt 0:00:33]} Qxf3 {[%emt 0:00:43]} 29. gxf3 {[%emt 0:00:29]} Kxh6 {[%emt 0:00:29]} 30. Qxf7 {[%emt 0:08:02]} Rf8 {[%emt 0:02:12]} 31. Qe7 {[%emt 0:07:56]} Rac8 {[%emt 0:02:07]} 32. b3 {[%emt 0:05:08]} Rxc2 {[%emt 0:01:05]} 33. Qxf8+ {[%emt 0:00:06]} Kh5 {[%emt 0:00:17]} 34. Kg2 {[%emt 0:04:36]} Rxf2+ {[%emt 0:01:42]} 35. Kg3 {[%emt 0:01:17]} Rf1 {[%emt 0:00:17]} 36. Qd8 {[%emt 0:01:43]} Rg1+ {[%emt 0:00:48]} 37. Kh3 {[%emt 0:00:13]} g5 {[%emt 0:02:24]} 38. Qg8 {[%emt 0:04:05]} Kh6 {[%emt 0:00:35]} 39. Qf7 {[%emt 0:00:37]} Rf1 {[%emt 0:00:36]} 40. Kg4 {[%emt 0:00:36]} Rg1+ {[%emt 0:00:27]} 41. Kf5 {[%emt 0:31:42]} g4 {[%emt 0:31:54]} 42. Qf6+ {[%emt 0:00:16]} 1-0

[Event "SWE-ch Masters Elite 2019"]
[Site "Eskilstuna"]
[Date "2019.07.11"]
[Round "6.2"]
[White "Rydstrom, Tom"]
[Black "Nyander, Joakim"]
[Result "0-1"]
[ECO "B42"]
[WhiteElo "2345"]
[BlackElo "2233"]
[Annotator "NA"]
[PlyCount "92"]
[EventDate "2019.07.06"]
[EventType "tourn"]
[EventCountry "SWE"]
[SourceTitle "playchess.com"]
[Source "ChessBase"]
[SourceQuality "1"]
[TimeControl "40/5400+30:1800+30"]

1. e4 {[%emt 0:01:09]} c5 {[%emt 0:00:00]} 2. Nf3 {[%emt 0:00:06]} e6 {[%emt 0:00:19]} 3. d4 {[%emt 0:00:12]} cxd4 {[%emt 0:00:29]} 4. Nxd4 {[%emt 0:00:03]} a6 {[%emt 0:00:27]} 5. Bd3 {[%emt 0:00:37]} Nf6 {[%emt 0:01:09]} 6. O-O {[%emt 0:03:18]} d6 {[%emt 0:00:40]} 7. Be3 {[%emt 0:02:00]} Be7 {[%emt 0:02:56]} 8. c4 {[%emt 0:01:37]} O-O {[%emt 0:04:49]} 9. Nc3 {[%emt 0:00:05]} b6 {[%emt 0:01:09]} 10. f4 {[%emt 0:03:16]} Bb7 {[%emt 0:02:23]} 11. a3 {[%emt 0:00:28]} Re8 {[%emt 0:03:45]} 12. Qf3 {[%emt 0:05:19]} Nbd7 {[%emt 0:04:29]} 13. b4 {[%emt 0:00:08]} Rc8 {[%emt 0:01:38]} 14. Rac1 {[%emt 0:01:08]} Bf8 {[%emt 0:02:27]} 15. Qh3 {[%emt 0:03:05]} g6 {[%emt 0:07:46]} 16. g4 {[%emt 0:08:27]} e5 {[%emt 0:06:58]} 17. Nf3 {[%emt 0:00:10]} exf4 {[%emt 0:04:30]} 18. Bxf4 {[%emt 0:00:24]} b5 {[%emt 0:03:05]} 19. cxb5 {[%emt 0:12:35]} axb5 {[%emt 0:01:15]} 20. Be3 {[%emt 0:09:08]} Bg7 {[%emt 0:20:21]} 21. Nxb5 {[%emt 0:12:48]} Rxc1 {[%emt 0:03:03]} 22. Rxc1 {[%emt 0:00:09]} Bxe4 {[%emt 0:02:08]} 23. Bf1 {[%emt 0:12:11]} Bxf3 {[%emt 0:06:16]} 24. Qxf3 {[%emt 0:00:02]} Ne5 {[%emt 0:00:27]} 25. Qb7 {[%emt 0:11:22]} Nfxg4 {[%emt 0:01:52]} 26. Bf4 {[%emt 0:00:17]} Qf6 {[%emt 0:01:05]} 27. Rc8 {[%emt 0:03:53]} Rxc8 {[%emt 0:02:23]} 28. Qxc8+ {[%emt 0:00:02]} Bf8 {[%emt 0:00:10]} 29. Qc1 {[%emt 0:01:18]} Bh6 {[%emt 0:03:57]} 30. Qc8+ {[%emt 0:00:41]} Kg7 {[%emt 0:00:37]} 31. Bxh6+ {[%emt 0:00:04]} Kxh6 {[%emt 0:00:36]} 32. Qc1+ {[%emt 0:00:38]} Kg7 {[%emt 0:00:15]} 33. Bg2 {[%emt 0:00:47]} Qf2+ {[%emt 0:02:00]} 34. Kh1 {[%emt 0:00:02]} Qh4 {[%emt 0:03:56]} 35. h3 {[%emt 0:01:33]} Nf2+ {[%emt 0:00:32]} 36. Kg1 {[%emt 0:00:09]} Qg3 {[%emt 0:02:18]} 37. Qc3 {[%emt 0:00:11]} Nxh3+ {[%emt 0:00:34]} 38. Kh1 {[%emt 0:00:02]} Nf2+ {[%emt 0:00:20]} 39. Kg1 {[%emt 0:00:01]} Nh3+ {[%emt 0:01:36]} 40. Kh1 {[%emt 0:00:01]} Nf2+ {[%emt 0:00:13]} 41. Kg1 {[%emt 0:30:57]} Nfd3 {[%emt 0:34:04]} 42. Nxd6 {[%emt 0:06:05]} Qe3+ {[%emt 0:00:00]} 43. Kh2 {[%emt 0:00:00]} Kh6 {[%emt 0:00:00]} 44. Ne4 {[%emt 0:00:00]} Ng4+ {[%emt 0:00:00]} 45. Kh1 {[%emt 0:00:00]} Ndf2+ {[%emt 0:00:00]} 46. Kg1 {[%emt 0:00:00]} Nh3+ {[%emt 0:00:00]} 0-1

[Event "SWE-ch Masters Elite 2019"]
[Site "Eskilstuna"]
[Date "2019.07.11"]
[Round "6.3"]
[White "Wengholm, Anders"]
[Black "Seo, Jung Min"]
[Result "0-1"]
[ECO "A39"]
[WhiteElo "2219"]
[BlackElo "2399"]
[Annotator "NA"]
[PlyCount "68"]
[EventDate "2019.07.06"]
[EventType "tourn"]
[EventCountry "SWE"]
[SourceTitle "playchess.com"]
[Source "ChessBase"]
[SourceQuality "1"]
[TimeControl "40/5400+30:1800+30"]

1. c4 {[%emt 0:01:37]} c5 {[%emt 0:00:00]} 2. Nf3 {[%emt 0:00:36]} Nf6 {[%emt 0:00:05]} 3. Nc3 {[%emt 0:00:37]} Nc6 {[%emt 0:01:10]} 4. g3 {[%emt 0:00:24]} g6 {[%emt 0:02:39]} 5. Bg2 {[%emt 0:00:09]} Bg7 {[%emt 0:00:03]} 6. d4 {[%emt 0:00:13]} cxd4 {[%emt 0:01:17]} 7. Nxd4 {[%emt 0:00:03]} O-O {[%emt 0:00:34]} 8. O-O {[%emt 0:00:13]} Qa5 {[%emt 0:03:59]} 9. Nb3 {[%emt 0:04:01]} Qh5 {[%emt 0:01:26]} 10. h3 {[%emt 0:05:28]} g5 {[%emt 0:22:57]} 11. e4 {[%emt 0:20:14]} g4 {[%emt 0:11:30]} 12. Nd5 {[%emt 0:04:56]} d6 {[%emt 0:02:26]} 13. Nf4 {[%emt 0:09:32]} Qe5 {[%emt 0:00:17]} 14. hxg4 {[%emt 0:02:37]} Bxg4 {[%emt 0:02:53]} 15. f3 {[%emt 0:00:09]} Bc8 {[%emt 0:03:07]} 16. g4 {[%emt 0:04:17]} a5 {[%emt 0:04:15]} 17. Nd3 {[%emt 0:08:23]} Qe6 {[%emt 0:00:16]} 18. Nd2 {[%emt 0:00:17]} Nd7 {[%emt 0:02:08]} 19. f4 {[%emt 0:01:48]} Bd4+ {[%emt 0:01:31]} 20. Kh2 {[%emt 0:00:14]} Qh6+ {[%emt 0:07:54]} 21. Kg3 {[%emt 0:01:58]} Nf6 {[%emt 0:00:25]} 22. Bf3 {[%emt 0:08:08]} Qg7 {[%emt 0:01:00]} 23. Nb3 {[%emt 0:02:33]} Ba7 {[%emt 0:03:07]} 24. Rh1 {[%emt 0:04:35]} Bxg4 {[%emt 0:05:25]} 25. Bxg4 {[%emt 0:00:14]} h5 {[%emt 0:00:01]} 26. Nf2 {[%emt 0:00:50]} Bxf2+ {[%emt 0:00:45]} 27. Kxf2 {[%emt 0:00:06]} Nxg4+ {[%emt 0:00:11]} 28. Kf3 {[%emt 0:00:33]} Qg6 {[%emt 0:00:45]} 29. Nd4 {[%emt 0:02:25]} Nxd4+ {[%emt 0:01:34]} 30. Qxd4 {[%emt 0:00:02]} f5 {[%emt 0:00:27]} 31. Ke2 {[%emt 0:01:57]} e5 {[%emt 0:01:04]} 32. Qd5+ {[%emt 0:00:47]} Kh8 {[%emt 0:00:05]} 33. exf5 {[%emt 0:01:16]} Rxf5 {[%emt 0:00:51]} 34. Bd2 {[%emt 0:00:14]} Re8 {[%emt 0:00:34]} 0-1

[Event "SWE-ch Masters Elite 2019"]
[Site "Eskilstuna"]
[Date "2019.07.11"]
[Round "6.4"]
[White "Lindberg, Bengt"]
[Black "Malmstig, Erik"]
[Result "0-1"]
[ECO "B43"]
[WhiteElo "2384"]
[BlackElo "2357"]
[Annotator "NA"]
[PlyCount "196"]
[EventDate "2019.07.06"]
[EventType "tourn"]
[EventCountry "SWE"]
[SourceTitle "playchess.com"]
[Source "ChessBase"]
[SourceQuality "1"]
[TimeControl "40/5400+30:1800+30"]

1. e4 {[%emt 0:00:00]} c5 {[%emt 0:00:00]} 2. Nf3 {[%emt 0:00:00]} e6 {[%emt 0:00:00]} 3. d4 {[%emt 0:00:00]} cxd4 {[%emt 0:00:00]} 4. Nxd4 {[%emt 0:00:00]} a6 {[%emt 0:00:00]} 5. Nc3 {[%emt 0:00:13]} Qc7 {[%emt 0:00:14]} 6. Bd3 {[%emt 0:00:13]} Nf6 {[%emt 0:00:25]} 7. O-O {[%emt 0:00:46]} Bc5 {[%emt 0:00:23]} 8. Nb3 {[%emt 0:00:15]} Be7 {[%emt 0:00:24]} 9. f4 {[%emt 0:00:33]} d6 {[%emt 0:00:15]} 10. e5 {[%emt 0:00:33]} Nfd7 {[%emt 0:00:44]} 11. exd6 {[%emt 0:00:33]} Qxd6 {[%emt 0:01:20]} 12. Ne4 {[%emt 0:00:12]} Qb6+ {[%emt 0:00:50]} 13. Kh1 {[%emt 0:00:11]} O-O {[%emt 0:00:32]} 14. Qe2 {[%emt 0:32:03]} Nc6 {[%emt 0:03:40]} 15. Be3 {[%emt 0:11:45]} Qc7 {[%emt 0:00:45]} 16. c3 {[%emt 0:00:14]} Nf6 {[%emt 0:03:07]} 17. Rad1 {[%emt 0:01:44]} Nd5 {[%emt 0:01:57]} 18. Bc1 {[%emt 0:00:56]} b5 {[%emt 0:02:02]} 19. Bb1 {[%emt 0:01:06]} Rd8 {[%emt 0:04:32]} 20. Rde1 {[%emt 0:06:22]} a5 {[%emt 0:07:26]} 21. Qh5 {[%emt 0:07:17]} g6 {[%emt 0:06:09]} 22. Qf3 {[%emt 0:06:03]} Bf8 {[%emt 0:05:17]} 23. Ng5 {[%emt 0:03:12]} Bg7 {[%emt 0:06:59]} 24. Nc5 {[%emt 0:01:37]} Nce7 {[%emt 0:03:41]} 25. Nd3 {[%emt 0:02:57]} Nf5 {[%emt 0:03:57]} 26. Qh3 {[%emt 0:04:38]} h6 {[%emt 0:03:48]} 27. Ne4 {[%emt 0:00:07]} b4 {[%emt 0:04:54]} 28. cxb4 {[%emt 0:00:31]} axb4 {[%emt 0:00:13]} 29. Ne5 {[%emt 0:01:14]} Ba6 {[%emt 0:02:27]} 30. Rg1 {[%emt 0:03:22]} Bb7 {[%emt 0:04:32]} 31. Ng3 {[%emt 0:04:45]} Nf6 {[%emt 0:04:15]} 32. Nxf5 {[%emt 0:02:24]} exf5 {[%emt 0:00:40]} 33. Qb3 {[%emt 0:04:42]} Bf8 {[%emt 0:18:56]} 34. Rgf1 {[%emt 0:01:42]} Bd5 {[%emt 0:00:47]} 35. Qg3 {[%emt 0:02:31]} Ne4 {[%emt 0:00:57]} 36. Bxe4 {[%emt 0:00:06]} Bxe4 {[%emt 0:00:11]} 37. a3 {[%emt 0:00:09]} Rab8 {[%emt 0:05:27]} 38. h4 {[%emt 0:01:23]} h5 {[%emt 0:02:08]} 39. Rxe4 {[%emt 0:02:17]} fxe4 {[%emt 0:00:27]} 40. f5 {[%emt 0:00:01]} Rb6 {[%emt 0:03:58]} 41. Bf4 {[%emt 0:02:48]} Qc2 {[%emt 0:11:26]} 42. Kh2 {[%emt 0:24:17]} Rd3 {[%emt 0:05:46]} 43. Nxd3 {[%emt 0:01:10]} exd3 {[%emt 0:00:41]} 44. Rf2 {[%emt 0:01:12]} Qc4 {[%emt 0:01:30]} 45. Rf3 {[%emt 0:01:58]} Rf6 {[%emt 0:02:10]} 46. Rxd3 {[%emt 0:01:03]} Rxf5 {[%emt 0:00:20]} 47. Bd6 {[%emt 0:00:45]} Bxd6 {[%emt 0:01:34]} 48. Rxd6 {[%emt 0:00:01]} Rf4 {[%emt 0:00:15]} 49. Kh3 {[%emt 0:01:11]} Qc1 {[%emt 0:04:38]} 50. Rd1 {[%emt 0:01:17]} Qc8+ {[%emt 0:02:16]} 51. Kh2 {[%emt 0:00:03]} Qc7 {[%emt 0:00:34]} 52. Kh3 {[%emt 0:00:42]} Qc8+ {[%emt 0:00:20]} 53. Kh2 {[%emt 0:00:03]} Qc4 {[%emt 0:01:42]} 54. Kh3 {[%emt 0:00:08]} Rg4 {[%emt 0:00:21]} 55. Rd8+ {[%emt 0:00:35]} Kh7 {[%emt 0:00:10]} 56. Qf2 {[%emt 0:00:16]} Qe6 {[%emt 0:02:25]} 57. Kh2 {[%emt 0:01:25]} Qe7 {[%emt 0:00:06]} 58. Rd3 {[%emt 0:00:30]} Rxh4+ {[%emt 0:00:26]} 59. Kg1 {[%emt 0:00:27]} Re4 {[%emt 0:01:14]} 60. axb4 {[%emt 0:00:52]} Re2 {[%emt 0:01:03]} 61. Qg3 {[%emt 0:00:37]} Rxb2 {[%emt 0:01:14]} 62. Re3 {[%emt 0:00:18]} Rb1+ {[%emt 0:00:24]} 63. Kh2 {[%emt 0:00:03]} Qxb4 {[%emt 0:00:09]} 64. Re8 {[%emt 0:00:45]} Rf1 {[%emt 0:00:55]} 65. Rb8 {[%emt 0:00:44]} Qf4 {[%emt 0:00:54]} 66. Qxf4 {[%emt 0:00:03]} Rxf4 {[%emt 0:00:06]} 67. Kg3 {[%emt 0:00:13]} Rf5 {[%emt 0:00:22]} 68. Rb7 {[%emt 0:00:06]} Kh6 {[%emt 0:00:07]} 69. Ra7 {[%emt 0:00:04]} Kg5 {[%emt 0:00:10]} 70. Ra4 {[%emt 0:00:06]} Rb5 {[%emt 0:00:17]} 71. Kh3 {[%emt 0:00:17]} Rb3+ {[%emt 0:00:21]} 72. g3 {[%emt 0:00:17]} f5 {[%emt 0:00:26]} 73. Rc4 {[%emt 0:00:06]} Re3 {[%emt 0:00:26]} 74. Kg2 {[%emt 0:00:12]} Re4 {[%emt 0:00:26]} 75. Rc6 {[%emt 0:00:05]} h4 {[%emt 0:00:24]} 76. gxh4+ {[%emt 0:00:04]} Rxh4 {[%emt 0:00:04]} 77. Ra6 {[%emt 0:00:09]} Rb4 {[%emt 0:00:14]} 78. Ra3 {[%emt 0:00:21]} Rg4+ {[%emt 0:00:44]} 79. Kh3 {[%emt 0:00:16]} Re4 {[%emt 0:00:17]} 80. Kg3 {[%emt 0:00:47]} Rg4+ {[%emt 0:00:30]} 81. Kf3 {[%emt 0:00:07]} Rh4 {[%emt 0:01:39]} 82. Ra6 {[%emt 0:00:10]} Rh3+ {[%emt 0:00:11]} 83. Kg2 {[%emt 0:00:02]} Rb3 {[%emt 0:00:07]} 84. Rc6 {[%emt 0:00:13]} Kh5 {[%emt 0:00:09]} 85. Rf6 {[%emt 0:00:08]} Kg5 {[%emt 0:00:16]} 86. Ra6 {[%emt 0:00:05]} f4 {[%emt 0:00:06]} 87. Rc6 {[%emt 0:00:08]} Kf5 {[%emt 0:00:07]} 88. Kf2 {[%emt 0:00:25]} g5 {[%emt 0:00:08]} 89. Kg2 {[%emt 0:00:11]} Rb2+ {[%emt 0:00:10]} 90. Kf1 {[%emt 0:00:09]} Kg4 {[%emt 0:00:22]} 91. Kg1 {[%emt 0:00:17]} Kg3 {[%emt 0:00:30]} 92. Rc1 {[%emt 0:00:06]} Rg2+ {[%emt 0:00:19]} 93. Kh1 {[%emt 0:00:05]} Rh2+ {[%emt 0:00:12]} 94. Kg1 {[%emt 0:00:01]} f3 {[%emt 0:00:14]} 95. Rc3 {[%emt 0:00:21]} g4 {[%emt 0:00:55]} 96. Rb3 {[%emt 0:00:05]} Rc2 {[%emt 0:01:18]} 97. Rb1 {[%emt 0:00:05]} Rg2+ {[%emt 0:00:31]} 98. Kf1 {[%emt 0:00:17]} Rh2 {[%emt 0:00:12]} 0-1

[Event "SWE-ch Masters Elite 2019"]
[Site "Eskilstuna"]
[Date "2019.07.12"]
[Round "7.1"]
[White "Nyander, Joakim"]
[Black "Cramling, Dan"]
[Result "0-1"]
[ECO "A36"]
[WhiteElo "2233"]
[BlackElo "2321"]
[Annotator "NA"]
[PlyCount "74"]
[EventDate "2019.07.06"]
[EventType "tourn"]
[EventCountry "SWE"]
[SourceTitle "playchess.com"]
[Source "ChessBase"]
[SourceQuality "1"]
[TimeControl "40/5400+30:1800+30"]

1. c4 {[%emt 0:00:00]} g6 {[%emt 0:10:47]} 2. g3 {[%emt 0:00:02]} Bg7 {[%emt 0:00:35]} 3. Bg2 {[%emt 0:00:12]} d6 {[%emt 0:03:04]} 4. Nc3 {[%emt 0:00:31]} Nf6 {[%emt 0:00:39]} 5. e4 {[%emt 0:00:48]} O-O {[%emt 0:00:24]} 6. Nge2 {[%emt 0:00:19]} c5 {[%emt 0:00:23]} 7. d3 {[%emt 0:00:58]} Nc6 {[%emt 0:00:20]} 8. O-O {[%emt 0:00:36]} Rb8 {[%emt 0:05:01]} 9. h3 {[%emt 0:01:14]} a6 {[%emt 0:02:37]} 10. a4 {[%emt 0:00:27]} Ne8 {[%emt 0:00:45]} 11. Be3 {[%emt 0:01:20]} Nc7 {[%emt 0:01:57]} 12. d4 {[%emt 0:01:45]} cxd4 {[%emt 0:00:11]} 13. Nxd4 {[%emt 0:00:13]} Ne6 {[%emt 0:00:59]} 14. Nde2 {[%emt 0:01:14]} Bd7 {[%emt 0:02:01]} 15. Qd2 {[%emt 0:03:50]} Na5 {[%emt 0:04:25]} 16. Qd3 {[%emt 0:08:37]} Rc8 {[%emt 0:07:06]} 17. b3 {[%emt 0:11:25]} Nxb3 {[%emt 0:03:49]} 18. Rab1 {[%emt 0:00:43]} Nec5 {[%emt 0:04:53]} 19. Qc2 {[%emt 0:03:31]} Na5 {[%emt 0:01:21]} 20. Nd5 {[%emt 0:01:55]} Bxa4 {[%emt 0:03:24]} 21. Qa2 {[%emt 0:03:49]} Bb3 {[%emt 0:06:30]} 22. Rxb3 {[%emt 0:04:08]} Naxb3 {[%emt 0:00:10]} 23. Rb1 {[%emt 0:01:05]} e6 {[%emt 0:02:00]} 24. Ndc3 {[%emt 0:05:11]} Na5 {[%emt 0:02:24]} 25. f4 {[%emt 0:02:26]} Nd7 {[%emt 0:06:52]} 26. Rb4 {[%emt 0:02:29]} Qc7 {[%emt 0:01:15]} 27. e5 {[%emt 0:04:11]} dxe5 {[%emt 0:00:52]} 28. Ne4 {[%emt 0:00:30]} b6 {[%emt 0:16:57]} 29. c5 {[%emt 0:03:23]} Nxc5 {[%emt 0:03:38]} 30. Nxc5 {[%emt 0:00:50]} bxc5 {[%emt 0:00:09]} 31. Ra4 {[%emt 0:00:41]} Nc6 {[%emt 0:02:24]} 32. Bxc5 {[%emt 0:01:09]} Rfd8 {[%emt 0:00:37]} 33. Rxa6 {[%emt 0:04:55]} Nd4 {[%emt 0:00:30]} 34. Bb6 {[%emt 0:00:27]} Nxe2+ {[%emt 0:00:15]} 35. Kh2 {[%emt 0:01:30]} Qc1 {[%emt 0:00:12]} 36. Qxe2 {[%emt 0:00:33]} Rd2 {[%emt 0:02:27]} 37. Qf3 {[%emt 0:03:14]} Rcc2 {[%emt 0:01:15]} 0-1